bitfinex/quotes_ETHUSD_20250730
["timestamp","ask_amount","ask_price","bid_price","bid_amount"]
[1753887630505,38.4949,3822.2,3822.1,0.0358]
[1753887630714,8.0799,3822.2,3822.1,0.0358]
[1753887631121,0.7919,3822.2,3822.1,0.0358]
[1753887631323,31.44466479,3822.2,3822.1,0.0358]
[1753887631622,38.97731194,3822.2,3822.1,0.0316]
[1753887631778,38.73544715,3822.2,3822.1,0.0316]
[1753887631964,38.97709958,3822.2,3822.1,0.0316]
[1753887632592,39.08200958,3822.2,3822.1,0.0316]
[1753887633603,39.08200958,3822.2,3822.1,0.0326]
[1753887633916,41.6977137,3822.2,3822.1,0.0326]
[1753887634238,41.45665143,3822.2,3822.1,0.0326]
[1753887634518,41.45665143,3822.2,3820.4,0.001]
[1753887634519,32.61663657,3821.7,3820.4,0.001]
[1753887634668,3.1,3822.1,3818.3,0.4907]
[1753887634669,3.0,3821.4,3818.3,0.4907]
[1753887634868,0.6812,3820.2,3818.3,0.4907]
[1753887635181,37.9812,3820.2,3820.1,0.01795795]
[1753887635369,39.37761025,3820.2,3820.1,0.01795795]
[1753887635700,38.82761025,3820.2,3820.1,0.01795795]
[1753887636267,41.73350784,3820.2,3820.1,0.01795795]
[1753887636468,30.7593,3819.8,3817.9,0.4907]
[1753887636769,0.7903,3819.2,3818.6,0.4907]
[1753887637301,0.7903,3819.2,3817.5,0.4907]
[1753887637302,41.40721445,3819.2,3817.5,0.4907]
[1753887638227,41.40721445,3819.2,3818.0,0.4907]
[1753887638717,34.7387,3819.2,3818.0,0.4907]
[1753887638881,3.0,3819.2,3818.8,0.4907]
[1753887639089,39.67451445,3819.2,3818.3,0.4907]
[1753887639289,40.07291445,3819.2,3818.3,0.4907]
[1753887639504,40.07291445,3819.2,3817.1,0.04]
[1753887639505,30.7951,3818.2,3817.1,0.04]
[1753887639668,41.03723163,3818.2,3817.1,0.04]
[1753887639870,41.67532616,3818.2,3817.1,0.04]
[1753887640217,41.43563163,3818.2,3817.1,0.04]
[1753887640395,41.43463163,3818.2,3817.1,0.04]
[1753887640899,34.3451,3818.2,3817.3,0.4907]
[1753887641071,38.1291,3818.2,3817.3,0.4907]
[1753887641374,34.39235394,3818.2,3817.1,0.04]
[1753887641567,39.27435394,3818.2,3817.1,0.5307]
[1753887642309,38.87795394,3818.2,3817.1,0.5307]
[1753887642613,39.80705394,3818.2,3817.1,0.04]
[1753887643111,39.80605394,3818.2,3817.2,0.4907]
[1753887643667,37.53085394,3818.2,3817.6,0.4907]
[1753887643868,37.76990425,3818.2,3818.1,0.5307]
[1753887644074,4.52985394,3818.2,3818.1,0.9615]
[1753887645103,7.52985394,3818.2,3818.1,0.94922215]
[1753887645415,4.52985394,3818.2,3818.1,0.94922215]
[1753887645614,0.787407,3819.2,3818.1,0.94922215]
[1753887645773,4.57119845,3819.1,3818.2,0.9215]
[1753887645978,0.787407,3819.2,3818.3,0.9215]
[1753887646179,0.787407,3819.2,3818.8,2.61861537]
[1753887646373,5.121407,3819.2,3818.9,0.9215]
[1753887646579,5.121407,3819.2,3819.0,0.9273]
[1753887646773,3.0,3819.1,3818.4,0.7988]
[1753887647015,3.0,3819.1,3818.6,0.1312]
[1753887647311,7.335,3819.0,3818.9,0.1312]
[1753887647473,7.335,3819.0,3818.6,0.1312]
[1753887647671,7.335,3819.0,3818.6,0.4860955]
[1753887647875,4.335,3819.0,3818.6,0.4860955]
[1753887648109,6.294,3819.9,3818.8,0.8278]
[1753887648311,6.4252,3819.9,3819.3,0.1312]
[1753887648614,3.0,3819.7,3819.3,0.1312]
[1753887648814,4.337,3819.7,3819.4,0.9273]
[1753887648998,4.335,3820.1,3819.6,0.1312]
[1753887649321,4.335,3820.1,3819.7,0.9273]
[1753887649517,4.335,3820.1,3819.8,0.9273]
[1753887649816,4.335,3820.1,3820.0,0.1312]
[1753887650033,7.335,3820.1,3820.0,1.0585]
[1753887650246,0.1312,3820.7,3820.0,3.67624229]
[1753887650536,4.331,3820.7,3820.3,2.61758518]
[1753887650692,0.04,3820.9,3820.1,2.31551776]
[1753887650693,0.04,3820.9,3820.4,0.9273]
[1753887650899,0.04,3820.9,3820.5,2.74864998]
[1753887651098,0.04,3820.9,3820.6,0.78987389]
[1753887651413,0.04,3820.9,3820.8,2.74845293]
[1753887651704,0.04,3820.9,3820.7,0.4848]
[1753887652018,7.329,3820.8,3820.7,0.4848]
[1753887652234,0.24086235,3820.8,3820.7,0.9273]
[1753887652440,0.04,3820.9,3820.7,0.9273]
[1753887652643,0.28086235,3820.9,3820.1,0.7637]
[1753887652795,0.28086235,3820.9,3820.8,0.9273]
[1753887652995,7.401,3820.9,3820.8,0.4848]
[1753887653231,7.64086235,3820.9,3820.8,0.4848]
[1753887653588,3.0,3820.8,3820.1,0.7637]
[1753887653787,0.24086235,3820.7,3819.9,0.4848]
[1753887654042,0.24086235,3820.6,3819.9,0.4848]
[1753887654251,0.24086235,3820.5,3819.6,0.7756]
[1753887654404,3.0,3820.3,3819.6,0.7756]
[1753887654588,0.24086235,3820.2,3819.6,0.7756]
[1753887654790,0.24086235,3820.1,3819.5,0.4848]
[1753887655094,0.24086235,3820.0,3819.5,0.4848]
[1753887655292,3.0,3820.3,3818.8,0.4425]
[1753887655293,3.0,3819.8,3818.9,0.4848]
[1753887655495,0.24086235,3819.7,3818.9,0.4848]
[1753887655691,0.24086235,3819.6,3818.9,1.1016]
[1753887655929,3.0,3819.8,3818.9,1.1016]
[1753887655930,0.24086235,3819.5,3818.9,1.1016]
[1753887656159,3.0,3819.8,3819.0,0.4848]
[1753887656160,4.59686235,3819.4,3819.0,0.4848]
[1753887656471,0.24086235,3819.3,3819.1,0.4848]
[1753887656673,0.24086235,3819.2,3819.0,0.4425]
[1753887656969,0.24298234,3819.1,3818.6,1.2582]
[1753887657160,0.24298234,3819.0,3818.7,0.4425]
[1753887657471,0.24310832,3818.9,3818.8,0.4425]
[1753887658277,0.24310832,3818.9,3818.8,0.9273]
[1753887658473,0.24322765,3818.9,3818.8,0.9273]
[1753887658957,4.59022765,3818.9,3818.8,0.9273]
[1753887660251,4.59022765,3818.9,3818.8,0.4848]
[1753887660453,3.0,3818.8,3818.1,0.78562215]
[1753887660651,0.24322765,3818.7,3818.1,0.02872215]
[1753887660848,0.24322765,3818.6,3818.1,0.02872215]
[1753887661188,0.24322765,3818.5,3818.1,0.02872215]
[1753887661392,0.24322765,3818.4,3818.1,0.02872215]
[1753887661540,3.0,3818.2,3818.1,0.02872215]
[1753887661739,4.71642765,3818.2,3818.1,0.02872215]
[1753887662298,4.71688198,3818.2,3818.1,0.02872215]
[1753887663074,0.37488198,3818.2,3818.1,0.02872215]
[1753887663274,4.71488198,3818.2,3818.1,0.51352215]
[1753887663656,4.71488198,3818.2,3818.1,0.02872215]
[1753887663856,7.71488198,3818.2,3818.1,0.02872215]
[1753887664542,8.15548198,3818.2,3818.1,0.02872215]
[1753887664963,7.8612155,3818.2,3818.1,0.02872215]
[1753887665164,8.67764902,3818.2,3818.1,0.02872215]
[1753887665444,10.04094902,3818.2,3818.1,0.02872215]
[1753887665773,40.04094902,3818.2,3818.1,0.02872215]
[1753887666178,0.55,3817.9,3817.7,0.001]
[1753887666364,0.55,3817.9,3817.1,0.04]
[1753887666365,0.55,3817.3,3817.1,0.04]
[1753887666537,38.40723477,3817.2,3817.1,0.04]
[1753887666741,7.71088198,3817.2,3817.1,0.04]
[1753887667055,7.71088198,3817.2,3817.1,0.5248]
[1753887667238,7.71088198,3817.2,3817.1,0.9673]
[1753887667439,4.58068198,3817.2,3817.1,0.9673]
[1753887667643,4.58068198,3817.2,3817.1,1.1438]
[1753887667838,4.337,3817.2,3817.1,1.1438]
[1753887668064,0.1312,3817.6,3817.1,1.1438]
[1753887668236,0.02758142,3909.2,3817.2,3.54700263]
[1753887668237,0.24384518,3817.5,3817.2,3.54700263]
[1753887668443,4.335,3818.1,3817.5,0.1312]
[1753887668668,0.1312,3817.8,3817.3,1.0585]
[1753887668865,0.39010283,3817.7,3817.5,0.7977]
[1753887669193,4.337,3818.6,3817.6,3.73235912]
[1753887669353,0.7788,3819.6,3817.7,3.54667815]
[1753887669354,3.39009406,3818.5,3817.7,3.54667815]
[1753887669559,0.39009406,3818.4,3817.8,0.4425]
[1753887669745,0.39009406,3818.3,3817.8,0.4425]
[1753887670061,0.39009406,3818.2,3817.9,0.4425]
[1753887670266,3.0,3818.0,3817.5,0.7977]
[1753887670453,3.0,3818.0,3817.1,0.04]
[1753887670454,3.0,3817.8,3817.1,0.04]
[1753887670646,33.0,3817.6,3817.1,0.04]
[1753887670845,5.16969406,3817.5,3817.1,0.04]
[1753887671097,0.39009406,3817.4,3817.1,0.04]
[1753887671254,0.39009406,3817.3,3817.2,0.4425]
[1753887671461,7.73409406,3817.3,3817.2,0.9273]
[1753887671884,7.73409406,3817.3,3817.2,0.4848]
[1753887672377,3.39009406,3817.3,3817.2,0.9273]
[1753887672680,3.39009406,3817.3,3817.2,1.28864213]
[1753887672882,3.39003424,3817.3,3817.2,0.4848]
[1753887673082,0.39003424,3817.3,3817.2,0.9273]
[1753887673269,0.24380879,3817.3,3817.2,4.37672126]
[1753887673449,0.24380879,3817.3,3817.2,1.757]
[1753887673645,0.39003534,3817.3,3817.2,1.3145]
[1753887674182,0.24380879,3817.3,3817.2,1.3145]
[1753887674580,0.24380879,3817.3,3817.2,1.757]
[1753887674776,0.24380879,3817.3,3817.2,1.89245]
[1753887675221,0.24380879,3817.3,3817.2,1.3145]
[1753887675418,0.24380879,3817.3,3817.1,0.04]
[1753887675709,0.24374116,3817.2,3817.1,0.04]
[1753887675908,0.38998645,3817.2,3817.1,0.04]
[1753887676324,0.24374116,3817.2,3817.1,0.04]
[1753887677375,1.19174116,3817.2,3817.1,0.04]
[1753887677790,34.88793016,3817.2,3817.1,0.04]
[1753887678011,41.80804116,3817.2,3817.1,0.04]
[1753887678500,44.31197345,3817.2,3817.1,0.041]
[1753887678668,30.0,3816.7,3816.1,0.04]
[1753887678864,0.1312,3816.2,3816.1,0.04]
[1753887679069,3.1312,3816.2,3816.1,0.04]
[1753887679501,7.4732,3816.2,3816.1,0.04]
[1753887680068,38.4212,3816.2,3816.1,0.04]
[1753887680271,7.4722,3816.2,3816.1,0.04]
[1753887680903,7.4712,3816.2,3816.1,0.04]
[1753887681268,7.342,3816.2,3816.1,0.9385]
[1753887681562,7.345,3816.2,3816.1,0.9385]
[1753887681742,7.345,3816.2,3816.1,0.04]
[1753887681951,7.4762,3816.2,3816.1,0.04]
[1753887682130,7.72567711,3816.2,3816.1,0.04]
[1753887682331,8.67367711,3816.2,3816.1,0.04]
[1753887682751,8.19217711,3816.2,3816.1,0.04]
[1753887683269,7.72567711,3816.2,3816.1,0.04]
[1753887683454,3.37467711,3816.2,3816.1,0.04]
[1753887683660,7.72367711,3816.2,3816.1,0.04]
[1753887684075,3.37467711,3816.2,3816.1,0.504]
[1753887684571,7.347,3816.2,3816.1,0.9385]
[1753887684775,0.1312,3816.7,3816.1,0.9385]
[1753887684992,0.24353931,3816.6,3816.5,3.38260175]
[1753887685294,0.24350736,3817.1,3816.8,0.1312]
[1753887685585,0.24362744,3817.0,3816.9,0.8985]
[1753887685932,0.24362744,3817.0,3816.9,1.0297]
[1753887686188,0.24362744,3817.1,3816.9,0.464]
[1753887686374,0.24362744,3817.0,3816.5,0.8936]
[1753887686546,0.24362744,3817.0,3816.9,0.4345]
[1753887686746,0.24362744,3817.0,3816.9,0.5657]
[1753887686971,0.24362744,3817.0,3816.9,3.64962716]
[1753887687178,0.24362744,3817.0,3816.9,1.0297]
[1753887687471,0.24362744,3817.0,3816.9,2.43037794]
[1753887687668,4.347,3817.2,3816.9,2.43037794]
[1753887687669,4.347,3817.2,3816.9,1.8034]
[1753887687835,0.24386249,3817.1,3816.9,1.8034]
[1753887688035,0.24386249,3817.1,3817.0,0.8985]
[1753887688235,4.348,3817.2,3817.0,0.8985]
[1753887688436,4.348,3817.2,3817.1,0.464]
[1753887688875,4.348,3817.2,3817.1,0.64434]
[1753887689075,3.0,3817.9,3817.1,1.07884]
[1753887689378,0.37520139,3817.8,3817.1,1.21004]
[1753887689678,0.24400139,3817.7,3817.1,1.07884]
[1753887689868,3.0,3817.5,3817.1,1.07884]
[1753887690071,4.341,3817.4,3817.2,0.464]
[1753887691260,4.341,3817.4,3817.2,0.662374]
[1753887691450,4.341,3817.4,3816.9,0.7737]
[1753887691655,0.1312,3817.3,3816.9,0.7737]
[1753887692056,0.1312,3817.3,3816.9,1.2377]
[1753887692257,0.19339237,3818.0,3817.0,0.8985]
[1753887692492,0.1312,3817.5,3817.1,0.16722]
[1753887692787,0.1312,3817.6,3817.2,0.464]
[1753887692992,0.1312,3817.6,3817.1,0.16722]
[1753887692993,3.0,3817.4,3817.1,0.16722]
[1753887693148,0.1312,3817.6,3817.3,0.464]
[1753887693350,3.0,3817.4,3817.2,0.4345]
[1753887693590,3.0,3817.4,3817.1,0.16722]
[1753887694888,0.24466946,3817.3,3816.3,0.464]
[1753887695064,0.1312,3817.1,3816.6,0.1312]
[1753887695268,3.0,3816.9,3816.8,0.8241]
[1753887695477,4.326,3817.0,3816.8,0.9553]
[1753887695792,4.326,3817.1,3816.8,1.8538]
[1753887695955,4.326,3817.1,3816.9,0.44738532]
[1753887696151,4.326,3817.1,3816.9,0.464]
[1753887696495,4.325,3817.2,3817.0,1.0297]
[1753887696692,0.1312,3817.7,3817.1,0.8985]
[1753887696880,3.0,3817.5,3817.2,0.464]
[1753887697086,3.0,3817.5,3817.3,0.464]
[1753887697283,3.0,3817.5,3817.4,0.464]
[1753887698296,3.24476152,3817.5,3816.9,0.464]
[1753887698483,3.1312,3817.5,3817.0,0.1312]
[1753887698689,3.1312,3817.5,3817.0,0.5952]
[1753887698888,3.1312,3817.5,3816.9,0.30346]
[1753887699198,0.1312,3817.0,3816.1,0.504]
[1753887699378,1.737,3817.4,3816.1,0.6352]
[1753887699379,0.1312,3816.6,3816.1,0.6352]
[1753887699571,4.325,3816.5,3816.1,0.1712]
[1753887699893,4.325,3816.5,3816.2,0.8985]
[1753887700099,4.4542,3816.6,3816.3,0.464]
[1753887700497,0.1312,3816.6,3816.4,0.464]
[1753887700671,3.1312,3816.8,3816.4,0.13891]
[1753887700878,0.1312,3816.5,3816.1,0.04]
[1753887701067,3.0,3816.6,3816.1,0.04]
[1753887701258,0.1312,3816.3,3816.1,0.04]
[1753887701458,4.322,3816.2,3816.1,0.04]
[1753887702463,4.322,3816.2,3816.1,0.504]
[1753887702923,4.322,3816.2,3816.1,0.04]
[1753887704873,4.7885,3816.2,3816.1,0.04]
[1753887706077,5.27,3816.2,3816.1,0.04]
[1753887706302,9.6524,3816.2,3816.1,0.04]
[1753887706504,9.34733472,3816.2,3816.1,0.04]
[1753887706840,9.34733308,3816.2,3816.1,0.04]
[1753887706995,9.1024,3816.2,3816.1,0.04]
[1753887707185,7.317,3816.2,3816.1,0.04]
[1753887708487,7.7708,3816.2,3816.1,0.04]
[1753887708897,8.2321,3816.2,3816.1,0.04]
[1753887709093,8.62388553,3816.2,3816.1,0.04]
[1753887709291,8.47696117,3816.2,3816.1,0.04]
[1753887709603,8.2321,3816.2,3816.1,0.04]
[1753887709805,8.62388176,3816.2,3816.1,0.04]
[1753887710213,7.70878176,3816.2,3816.1,0.04]
[1753887710413,7.70378176,3816.2,3816.1,0.04]
[1753887710717,3.39178176,3816.2,3816.1,0.04]
[1753887710895,7.69978176,3816.2,3816.1,0.04]
[1753887711090,7.5528636,3816.2,3816.1,0.04]
[1753887711401,7.69872277,3816.2,3816.1,0.04]
[1753887711611,7.6987278,3816.2,3816.1,0.04]
[1753887712227,3.3917278,3816.2,3816.1,0.04]
[1753887712552,7.94048192,3816.2,3816.1,0.04]
[1753887712899,7.6957278,3816.2,3816.1,0.04]
[1753887713197,7.9404566,3816.2,3816.1,0.04]
[1753887713396,8.8555566,3816.2,3816.1,0.04]
[1753887713856,8.85556458,3816.2,3816.1,0.04]
[1753887714433,8.39426458,3816.2,3816.1,0.04]
[1753887714630,8.39423046,3816.2,3816.1,0.04]
[1753887714831,8.85553046,3816.2,3816.1,0.04]
[1753887715195,42.55420141,3816.2,3816.1,0.04]
[1753887715529,42.79865567,3816.2,3816.1,0.04]
[1753887715744,42.79865711,3816.2,3816.1,0.04]
[1753887715896,42.55399966,3816.2,3816.1,0.04]
[1753887716094,42.79866883,3816.2,3816.1,0.04]
[1753887716353,42.55399966,3816.2,3816.1,0.04]
[1753887716572,42.79858876,3816.2,3816.1,0.04]
[1753887716849,42.78858876,3816.2,3816.1,0.04]
[1753887717345,42.78840524,3816.2,3816.1,0.04]
[1753887717568,35.8738393,3816.2,3816.1,0.04]
[1753887717714,40.16684095,3816.2,3816.1,0.04]
[1753887717914,42.32594868,3816.2,3816.1,0.04]
[1753887718149,42.78724868,3816.2,3816.1,0.04]
[1753887718550,38.49424868,3816.2,3816.1,0.04]
[1753887718753,42.7851522,3816.2,3816.1,0.04]
[1753887719653,40.16474447,3816.2,3816.1,0.04]
[1753887719854,40.16374447,3816.2,3816.1,0.04]
[1753887720023,42.7841522,3816.2,3816.1,0.04]
[1753887720754,45.5421522,3816.2,3816.1,0.04]
[1753887720914,3.39719456,3815.2,3815.1,0.04]
[1753887721120,11.36539456,3815.2,3815.1,0.04]
[1753887721335,33.17164429,3814.4,3814.3,1.0]
[1753887721525,41.41704429,3814.4,3814.3,1.0]
[1753887721756,42.33214429,3814.4,3814.3,1.0]
[1753887722058,8.7954,3814.4,3814.3,1.0]
[1753887722220,7.4172,3814.4,3814.3,1.0]
[1753887722555,3.1312,3814.4,3814.3,2.09559]
[1753887722852,7.4172,3814.4,3814.3,1.9424]
[1753887723053,7.4172,3814.4,3814.3,1.4919]
[1753887723357,14.61677299,3814.4,3814.3,1.0]
[1753887723661,46.91327299,3814.4,3814.3,1.0]
[1753887724153,14.61677299,3814.4,3814.3,1.9424]
[1753887724314,14.61677299,3814.4,3814.3,2.14064]
[1753887724517,14.61777299,3814.4,3814.3,1.4919]
[1753887724745,7.0,3814.4,3814.3,2.742]
[1753887724925,7.0,3814.4,3814.3,1.9424]
[1753887725127,10.20135787,3814.4,3814.3,1.0]
[1753887725339,14.49035787,3814.4,3814.3,1.0]
[1753887725636,14.49135787,3814.4,3814.3,1.4919]
[1753887725838,10.20135787,3814.4,3814.3,1.9424]
[1753887726051,10.20135787,3814.4,3814.3,2.2206]
[1753887726052,11.49135787,3814.4,3814.3,2.2206]
[1753887726261,14.49135787,3814.4,3814.3,2.2206]
[1753887726552,7.49135787,3814.4,3814.3,1.0]
[1753887726758,3.20135787,3814.4,3814.3,1.0]
[1753887727069,7.49035787,3814.4,3814.3,1.4919]
[1753887727221,7.49035787,3814.4,3814.3,1.0]
[1753887727424,37.49035787,3814.4,3814.3,1.0]
[1753887727750,8.04035787,3814.4,3814.3,1.0]
[1753887728056,36.45318176,3814.2,3814.1,0.04]
[1753887728358,41.25108176,3814.2,3814.1,1e-08]
[1753887728578,36.95676931,3813.2,3813.1,0.04]
[1753887728724,47.55276931,3813.2,3813.1,0.04]
[1753887728916,48.01406931,3813.2,3813.1,0.04]
[1753887729166,40.0853,3813.2,3813.1,0.04]
[1753887729456,48.46786931,3813.2,3813.1,0.04]
[1753887730234,48.46786931,3813.2,3812.1,0.04]
[1753887730235,33.99045723,3812.2,3812.1,0.04]
[1753887730422,38.6713,3812.2,3812.1,0.04]
[1753887730624,38.1213,3812.2,3812.1,0.04]
[1753887730960,7.303,3812.2,3812.1,0.9824]
[1753887731163,39.92615723,3812.2,3812.1,0.04]
[1753887731462,41.12710676,3812.2,3812.1,0.04]
[1753887731663,42.41660676,3812.2,3812.1,0.04]
[1753887732019,38.87834953,3812.2,3812.1,0.04]
[1753887732225,38.88234953,3812.2,3812.1,0.04]
[1753887732538,38.33234953,3812.2,3812.1,0.04]
[1753887732738,0.4919,3813.1,3812.1,0.9824]
[1753887732940,4.308,3813.0,3812.2,0.9424]
[1753887733147,4.309,3812.9,3812.3,1.79163088]
[1753887733341,4.309,3812.8,3812.4,1.12556309]
[1753887733549,4.309,3812.8,3812.5,0.9424]
[1753887733903,4.309,3812.8,3812.6,0.9424]
[1753887734169,4.309,3812.8,3812.4,0.18316309]
[1753887734459,4.309,3812.7,3812.4,0.18316309]
[1753887734663,4.309,3812.6,3812.5,1.30533009]
[1753887735206,6.301,3813.2,3812.5,0.9424]
[1753887735207,4.308,3812.8,3812.5,0.9424]
[1753887735511,0.7796,3814.5,3812.7,0.7958]
[1753887735799,3.0,3814.1,3812.8,0.9424]
[1753887735948,3.0,3813.9,3812.8,0.9424]
[1753887736155,0.1312,3812.9,3812.2,0.7991]
[1753887736349,3.0,3812.7,3812.3,0.9424]
[1753887736699,4.321,3812.6,3812.4,1.12055]
[1753887737001,4.323,3812.8,3812.5,1.051]
[1753887737165,4.323,3813.1,3812.7,0.7939]
[1753887737488,0.1312,3813.8,3813.3,2.62235825]
[1753887737687,4.322,3813.7,3813.2,0.02622469]
[1753887737889,4.322,3813.7,3813.5,0.1312]
[1753887738075,4.322,3813.7,3813.4,0.9198]
[1753887738076,4.322,3813.7,3813.0,0.7939]
[1753887738386,4.322,3813.7,3813.1,0.45284]
[1753887738387,0.1312,3813.5,3813.1,0.45284]
[1753887738586,0.1312,3813.2,3813.0,0.7939]
[1753887738790,0.1312,3813.3,3813.1,0.452]
[1753887739093,7.324,3813.2,3813.1,0.72091]
[1753887739391,4.325,3813.4,3813.1,0.58971]
[1753887739552,3.0,3813.4,3813.3,0.1312]
[1753887739751,4.325,3813.5,3813.4,0.8085]
[1753887739952,4.325,3813.5,3813.4,1.2605]
[1753887740196,4.325,3813.5,3813.4,1.881241]
[1753887740792,4.323,3813.8,3813.4,1.881241]
[1753887741090,0.7645,3816.5,3813.8,0.55]
[1753887741415,4.332,3815.6,3814.7,0.8013]
[1753887741577,3.24421722,3815.5,3814.7,0.8013]
[1753887741786,0.24421722,3815.4,3814.8,1.051]
[1753887741969,0.24421722,3815.4,3814.8,4.119756]
[1753887742155,0.24421722,3815.3,3814.8,4.119756]
[1753887742355,0.24421722,3815.2,3814.8,1.4983866]
[1753887742576,0.24421722,3815.1,3814.8,1.051]
[1753887742790,0.24421722,3815.0,3814.8,3.6723694]
[1753887743006,3.0,3815.6,3814.8,3.6723694]
[1753887743007,0.28421722,3814.9,3814.8,3.6723694]
[1753887743412,0.28421722,3814.9,3814.8,1.051]
[1753887743711,0.28438129,3814.9,3814.8,1.051]
[1753887743861,0.04,3814.9,3814.4,0.452]
[1753887744063,4.0524,3814.8,3813.7,0.7623]
[1753887744267,0.1312,3814.0,3813.5,0.1312]
[1753887744503,0.1312,3814.0,3813.6,0.9198]
[1753887744806,3.0,3814.4,3813.9,0.1312]
[1753887745002,0.24451104,3814.3,3814.0,1.10113]
[1753887745201,0.24451104,3814.3,3814.1,0.9198]
[1753887745404,3.042,3814.9,3814.1,3.5416505]
[1753887745405,0.24451104,3814.2,3814.1,3.5416505]
[1753887745701,3.042,3814.9,3814.2,0.1312]
[1753887745901,3.042,3814.9,3814.0,0.18133]
[1753887745902,0.24452157,3814.8,3814.7,2.62143812]
[1753887746103,0.042,3814.9,3814.8,3.5411694]
[1753887746290,0.042,3814.9,3814.8,4.5051694]
[1753887746901,0.042,3814.9,3814.8,1.8838]
[1753887747867,0.042,3814.9,3814.8,4.53138309]
[1753887748066,0.042,3814.9,3814.8,4.5051694]
[1753887748264,0.042,3814.9,3814.8,5.21783388]
[1753887748467,0.042,3814.9,3814.8,5.24404757]
[1753887748669,0.042,3814.9,3814.8,5.79404757]
[1753887748921,0.042,3814.9,3814.8,5.76783388]
[1753887749704,0.28673041,3814.9,3814.8,5.76783388]
[1753887749901,0.042,3814.9,3814.8,5.76783388]
[1753887751494,0.042,3814.9,3814.8,5.21783388]
[1753887751832,0.042,3814.9,3814.8,5.79404757]
[1753887752041,0.28474044,3815.9,3815.7,2.62073321]
[1753887752210,0.04,3815.9,3815.8,1.03307332]
[1753887752413,0.04,3815.9,3815.8,1.822]
[1753887752719,0.04,3815.9,3815.8,0.9022]
[1753887752922,0.04,3815.9,3815.8,1.3542]
[1753887753138,0.04,3815.9,3815.8,1.822]
[1753887753499,0.04,3815.9,3815.8,0.9022]
[1753887754038,0.04,3815.9,3815.8,1.822]
[1753887754239,0.04,3815.9,3815.8,4.62488242]
[1753887754437,0.04,3815.9,3815.8,4.65108924]
[1753887754743,0.04,3815.9,3815.8,5.20718242]
[1753887755196,0.04,3815.9,3815.8,4.65718242]
[1753887755399,0.04,3815.9,3815.8,8.98118242]
[1753887756233,0.04,3815.9,3815.8,9.53118242]
[1753887756714,0.04,3815.9,3815.8,8.98018242]
[1753887757539,0.04,3815.9,3815.8,1.5687]
[1753887757700,0.04,3815.9,3815.8,0.9345]
[1753887758336,0.04,3815.9,3815.8,0.1312]
[1753887758814,0.4944,3815.9,3815.3,0.8062]
[1753887759025,0.04,3815.9,3815.6,0.1312]
[1753887759324,0.04,3815.9,3815.3,0.8062]
[1753887759838,0.04,3815.9,3815.6,0.1312]
[1753887760040,0.04,3815.9,3815.7,0.02620751]
[1753887760217,0.04,3815.9,3815.6,0.1312]
[1753887760807,0.04,3815.9,3815.5,0.1312]
[1753887760808,0.4944,3815.9,3815.5,0.1312]
[1753887761005,0.04,3815.9,3815.6,0.02620819]
[1753887761334,0.04,3815.9,3815.8,0.1312]
[1753887761542,0.04,3815.9,3815.8,0.95300188]
[1753887762103,0.04,3815.9,3815.8,0.50100188]
[1753887762302,0.04,3815.9,3815.8,0.1312]
[1753887763166,0.04,3815.9,3815.3,0.8062]
[1753887763167,0.04,3815.9,3815.7,0.1312]
[1753887763748,0.04,3815.9,3815.4,0.02620957]
[1753887763972,0.04,3815.9,3815.7,0.1312]
[1753887764318,0.9212,3815.8,3815.2,0.1312]
[1753887764519,0.1312,3815.5,3814.3,0.7884]
[1753887764841,0.04,3815.9,3814.5,2.62157049]
[1753887765047,0.1312,3815.7,3814.6,0.43559869]
[1753887765259,0.9212,3815.6,3814.3,0.7884]
[1753887765460,0.1312,3815.3,3814.8,0.1312]
[1753887765824,0.1312,3815.8,3814.9,0.946013]
[1753887766027,0.04,3815.9,3815.2,0.1312]
[1753887766350,0.04,3815.9,3815.4,0.1312]
[1753887766560,0.04,3815.9,3814.5,2.62151572]
[1753887766733,0.1312,3815.8,3815.2,0.1312]
[1753887767326,0.5894,3815.8,3815.2,0.1312]
[1753887767829,0.042,3815.9,3815.2,0.4553]
[1753887768060,0.042,3815.9,3815.6,0.1312]
[1753887768448,0.042,3815.9,3814.9,0.7849]
[1753887768449,0.4582,3815.8,3814.9,0.7849]
[1753887768665,0.4582,3815.8,3815.4,0.1312]
[1753887769036,0.9563,3815.7,3814.7,0.4553]
[1753887769237,0.7807,3815.6,3815.2,0.1312]
[1753887769436,1.737,3815.6,3814.4,0.7789]
[1753887769651,0.1312,3815.4,3814.9,0.1312]
[1753887769852,0.9563,3815.3,3814.9,0.1312]
[1753887770466,0.4582,3815.3,3814.9,0.1312]
[1753887770870,0.1312,3815.4,3814.9,0.1312]
[1753887771430,0.9563,3815.3,3814.9,0.1312]
[1753887771732,0.7807,3815.6,3814.4,0.001]
[1753887771733,0.1312,3815.0,3814.4,0.001]
[1753887772158,0.4582,3814.9,3814.4,0.001]
[1753887772559,0.1312,3815.0,3814.4,0.02721644]
[1753887772769,3.0,3815.1,3814.8,0.5875]
[1753887772969,0.1312,3815.5,3814.9,0.8937]
[1753887773176,3.1312,3815.7,3815.0,0.444518]
[1753887773377,3.1312,3815.7,3815.2,0.1312]
[1753887773931,0.9563,3815.6,3814.8,0.001]
[1753887774126,0.1312,3815.4,3814.9,0.1312]
[1753887774331,0.9563,3815.3,3814.8,0.001]